[Event "22nd Ruzomberok Open 2019"]
[Site "Ruzomberok"]
[Date "2019.06.29"]
[Round "1.30"]
[White "Pecho, Juraj"]
[Black "Majerova, Veronika"]
[Result "1-0"]
[ECO "A45"]
[WhiteElo "1900"]
[BlackElo "1531"]
[Annotator "NA"]
[PlyCount "79"]
[EventDate "2019.06.29"]
[EventType "swiss"]
[EventCountry "SVK"]
[SourceTitle "playchess.com"]
[Source "ChessBase"]
[SourceQuality "1"]
[TimeControl "40/5400+30:1800+30"]

1. d4 {[%emt 0:00:00]} Nf6 {[%emt 0:00:00]} 2. Bf4 {[%emt 0:00:00]} g6 {[%emt 0:00:19]} 3. e3 {[%emt 0:00:00]} Bg7 {[%emt 0:00:05]} 4. Nf3 {[%emt 0:00:00]} d6 {[%emt 0:00:12]} 5. Be2 {[%emt 0:00:07]} O-O {[%emt 0:00:20]} 6. O-O {[%emt 0:00:11]} Nbd7 {[%emt 0:02:02]} 7. h3 {[%emt 0:00:34]} Re8 {[%emt 0:03:48]} 8. c3 {[%emt 0:02:10]} b6 {[%emt 0:01:05]} 9. a4 {[%emt 0:00:10]} a5 {[%emt 0:03:59]} 10. Bh2 {[%emt 0:05:43]} Bb7 {[%emt 0:01:56]} 11. Qb3 {[%emt 0:07:28]} e6 {[%emt 0:13:15]} 12. Nbd2 {[%emt 0:01:12]} Ne4 {[%emt 0:09:12]} 13. Nxe4 {[%emt 0:03:41]} Bxe4 {[%emt 0:00:50]} 14. Nd2 {[%emt 0:02:09]} Bb7 {[%emt 0:04:26]} 15. e4 {[%emt 0:07:36]} e5 {[%emt 0:04:25]} 16. dxe5 {[%emt 0:06:47]} Bxe5 {[%emt 0:06:34]} 17. Bxe5 {[%emt 0:03:07]} Rxe5 {[%emt 0:00:57]} 18. f4 {[%emt 0:04:50]} Re7 {[%emt 0:00:50]} 19. Bf3 {[%emt 0:05:26]} Nc5 {[%emt 0:02:19]} 20. Qc2 {[%emt 0:02:51]} Ba6 {[%emt 0:01:46]} 21. c4 {[%emt 0:06:18]} Ne6 {[%emt 0:05:24]} 22. Bg4 {[%emt 0:02:58]} Nd4 {[%emt 0:02:57]} 23. Qd3 {[%emt 0:00:49]} c5 {[%emt 0:02:53]} 24. Rae1 {[%emt 0:01:16]} Qe8 {[%emt 0:01:32]} 25. Nf3 {[%emt 0:06:03]} Nxf3+ {[%emt 0:10:23]} 26. Bxf3 {[%emt 0:00:16]} Rd8 {[%emt 0:00:41]} 27. Qb3 {[%emt 0:04:37]} d5 {[%emt 0:09:30]} 28. Qxb6 {[%emt 0:02:37]} Bxc4 {[%emt 0:00:21]} 29. Rf2 {[%emt 0:01:28]} dxe4 {[%emt 0:01:57]} 30. Qxc5 {[%emt 0:06:08]} e3 {[%emt 0:04:39]} 31. Rc2 {[%emt 0:01:58]} Rc8 {[%emt 0:02:08]} 32. Qxa5 {[%emt 0:00:22]} Bb3 {[%emt 0:02:20]} 33. Rxc8 {[%emt 0:00:27]} Qxc8 {[%emt 0:00:06]} 34. Qb4 {[%emt 0:00:26]} Qc2 {[%emt 0:02:17]} 35. Re2 {[%emt 0:00:35]} Qc1+ {[%emt 0:01:22]} 36. Kh2 {[%emt 0:00:14]} Rd7 {[%emt 0:00:34]} 37. Qb8+ {[%emt 0:01:44]} Kg7 {[%emt 0:00:19]} 38. Qxb3 {[%emt 0:00:16]} Rd1 {[%emt 0:00:43]} 39. Qxe3 {[%emt 0:00:32]} Rh1+ {[%emt 0:00:31]} 40. Kg3 {[%emt 0:00:08]} 1-0

[Event "22nd Ruzomberok Open 2019"]
[Site "Ruzomberok"]
[Date "2019.06.29"]
[Round "1.31"]
[White "Hajtmansky, Milan"]
[Black "Janik, Miroslav"]
[Result "0-1"]
[ECO "B30"]
[WhiteElo "1521"]
[BlackElo "1889"]
[Annotator "NA"]
[PlyCount "80"]
[EventDate "2019.06.29"]
[EventType "swiss"]
[EventCountry "SVK"]
[SourceTitle "playchess.com"]
[Source "ChessBase"]
[SourceQuality "1"]
[TimeControl "40/5400+30:1800+30"]

1. e4 {[%emt 0:00:00]} c5 {[%emt 0:00:11]} 2. Nf3 {[%emt 0:00:33]} Nc6 {[%emt 0:00:16]} 3. Bc4 {[%emt 0:01:23]} e6 {[%emt 0:01:00]} 4. a3 {[%emt 0:01:51]} Be7 {[%emt 0:01:06]} 5. O-O {[%emt 0:00:22]} d5 {[%emt 0:01:00]} 6. exd5 {[%emt 0:00:43]} exd5 {[%emt 0:00:24]} 7. Ba2 Nf6 {[%emt 0:01:01]} 8. d3 {[%emt 0:01:54]} O-O {[%emt 0:00:46]} 9. Bg5 {[%emt 0:01:01]} Bg4 {[%emt 0:01:49]} 10. Nbd2 {[%emt 0:03:45]} Re8 {[%emt 0:01:59]} 11. Re1 {[%emt 0:01:01]} Qd7 {[%emt 0:02:47]} 12. c3 {[%emt 0:03:19]} b5 {[%emt 0:01:28]} 13. Qc2 {[%emt 0:03:46]} Be6 {[%emt 0:03:26]} 14. Re2 {[%emt 0:04:44]} a5 {[%emt 0:01:39]} 15. Rae1 {[%emt 0:02:38]} a4 {[%emt 0:04:15]} 16. Bxf6 {[%emt 0:03:49]} Bxf6 {[%emt 0:00:52]} 17. Bb1 {[%emt 0:02:10]} g6 {[%emt 0:02:24]} 18. h4 {[%emt 0:02:23]} h5 {[%emt 0:02:52]} 19. g3 {[%emt 0:03:37]} Kg7 {[%emt 0:01:23]} 20. Nf1 {[%emt 0:08:31]} Qd6 {[%emt 0:02:26]} 21. Qd2 {[%emt 0:08:32]} d4 {[%emt 0:03:25]} 22. Ng5 {[%emt 0:06:35]} Bxg5 {[%emt 0:02:52]} 23. hxg5 {[%emt 0:01:30]} b4 {[%emt 0:05:10]} 24. c4 {[%emt 0:04:48]} b3 {[%emt 0:03:00]} 25. Qf4 {[%emt 0:04:10]} Qxf4 {[%emt 0:02:08]} 26. gxf4 {[%emt 0:00:09]} Kf8 {[%emt 0:03:40]} 27. Ng3 {[%emt 0:00:36]} Na5 {[%emt 0:06:12]} 28. Re5 {[%emt 0:01:41]} Nb7 {[%emt 0:01:10]} 29. Ne4 {[%emt 0:00:48]} Bf5 {[%emt 0:07:07]} 30. Nxc5 {[%emt 0:04:33]} Nxc5 {[%emt 0:00:19]} 31. Kg2 {[%emt 0:02:03]} Nxd3 {[%emt 0:00:55]} 32. Bxd3 {[%emt 0:00:31]} Bxd3 {[%emt 0:00:09]} 33. c5 {[%emt 0:00:59]} Rxe5 {[%emt 0:00:11]} 34. Rxe5 {[%emt 0:01:22]} Re8 {[%emt 0:00:19]} 35. c6 {[%emt 0:00:43]} Rxe5 {[%emt 0:00:04]} 36. fxe5 {[%emt 0:00:08]} Be4+ {[%emt 0:00:06]} 37. f3 {[%emt 0:00:52]} Bxc6 38. Kf2 Ke7 {[%emt 0:00:33]} 39. f4 {[%emt 0:00:18]} Be4 {[%emt 0:00:15]} 40. Ke2 {[%emt 0:00:10]} h4 {[%emt 0:00:11]} 0-1

[Event "22nd Ruzomberok Open 2019"]
[Site "Ruzomberok"]
[Date "2019.06.29"]
[Round "1.32"]
[White "Ambrozi, Peter"]
[Black "Petrasko, Jozef"]
[Result "1-0"]
[ECO "A46"]
[WhiteElo "1888"]
[BlackElo "1455"]
[Annotator "NA"]
[PlyCount "69"]
[EventDate "2019.06.29"]
[EventType "swiss"]
[EventCountry "SVK"]
[SourceTitle "playchess.com"]
[Source "ChessBase"]
[SourceQuality "1"]
[TimeControl "40/5400+30:1800+30"]

1. d4 {[%emt 0:00:00]} Nf6 {[%emt 0:00:00]} 2. Nf3 {[%emt 0:00:00]} d6 {[%emt 0:00:13]} 3. g3 {[%emt 0:00:08]} g6 {[%emt 0:01:32]} 4. Bg2 {[%emt 0:00:06]} Bg7 {[%emt 0:00:12]} 5. O-O {[%emt 0:00:17]} O-O {[%emt 0:00:08]} 6. c4 {[%emt 0:00:07]} c6 {[%emt 0:01:12]} 7. b3 {[%emt 0:02:52]} Nbd7 {[%emt 0:00:44]} 8. Bb2 {[%emt 0:00:11]} Qc7 {[%emt 0:01:31]} 9. Nc3 {[%emt 0:01:05]} e5 {[%emt 0:03:12]} 10. e4 {[%emt 0:01:41]} exd4 {[%emt 0:06:08]} 11. Nxd4 {[%emt 0:00:19]} Ne5 {[%emt 0:03:20]} 12. h3 {[%emt 0:01:34]} Qb6 {[%emt 0:04:27]} 13. Na4 {[%emt 0:03:48]} Qc7 {[%emt 0:01:22]} 14. f4 {[%emt 0:01:44]} Ned7 {[%emt 0:02:32]} 15. Qc2 {[%emt 0:05:56]} Nc5 {[%emt 0:12:22]} 16. Nxc5 {[%emt 0:03:31]} dxc5 {[%emt 0:00:17]} 17. Nf3 {[%emt 0:02:36]} Nh5 {[%emt 0:08:45]} 18. Bxg7 {[%emt 0:01:09]} Nxg7 {[%emt 0:00:35]} 19. Qf2 {[%emt 0:03:13]} Ne6 {[%emt 0:01:12]} 20. f5 {[%emt 0:05:45]} Ng7 {[%emt 0:02:42]} 21. g4 {[%emt 0:03:37]} b6 {[%emt 0:04:54]} 22. Qh4 {[%emt 0:02:34]} h5 {[%emt 0:07:31]} 23. f6 {[%emt 0:06:38]} Ne6 {[%emt 0:08:59]} 24. gxh5 {[%emt 0:00:51]} Qf4 {[%emt 0:00:33]} 25. hxg6 {[%emt 0:00:49]} Qxh4 {[%emt 0:01:29]} 26. Nxh4 {[%emt 0:01:04]} Ng5 {[%emt 0:01:03]} 27. g7 {[%emt 0:00:49]} Rd8 {[%emt 0:02:30]} 28. Nf5 {[%emt 0:00:27]} Bxf5 {[%emt 0:13:39]} 29. Rxf5 {[%emt 0:00:14]} Nh7 {[%emt 0:00:29]} 30. e5 {[%emt 0:00:24]} Re8 {[%emt 0:02:30]} 31. Re1 {[%emt 0:00:58]} Re6 {[%emt 0:00:11]} 32. Rh5 {[%emt 0:00:52]} Rae8 {[%emt 0:00:43]} 33. Be4 {[%emt 0:00:10]} Nxf6 {[%emt 0:00:40]} 34. exf6 {[%emt 0:00:14]} Rxf6 {[%emt 0:00:51]} 35. Bh7+ {[%emt 0:00:29]} 1-0

[Event "22nd Ruzomberok Open 2019"]
[Site "Ruzomberok"]
[Date "2019.06.29"]
[Round "1.33"]
[White "Segeda, Milos"]
[Black "Karcol, Jan"]
[Result "0-1"]
[ECO "C68"]
[WhiteElo "1446"]
[BlackElo "1882"]
[Annotator "NA"]
[PlyCount "44"]
[EventDate "2019.06.29"]
[EventType "swiss"]
[EventCountry "SVK"]
[SourceTitle "playchess.com"]
[Source "ChessBase"]
[SourceQuality "1"]
[TimeControl "40/5400+30:1800+30"]

1. e4 {[%emt 0:00:00]} e5 {[%emt 0:00:00]} 2. Nf3 {[%emt 0:00:00]} Nc6 {[%emt 0:00:00]} 3. Bb5 {[%emt 0:00:20]} a6 {[%emt 0:00:00]} 4. Bxc6 {[%emt 0:00:23]} dxc6 {[%emt 0:00:36]} 5. Nxe5 {[%emt 0:01:19]} Qd4 {[%emt 0:00:11]} 6. Nxf7 {[%emt 0:02:13]} Qxe4+ {[%emt 0:00:47]} 7. Qe2 {[%emt 0:01:01]} Qxe2+ {[%emt 0:00:14]} 8. Kxe2 {[%emt 0:00:13]} Kxf7 {[%emt 0:00:04]} 9. Nc3 {[%emt 0:01:44]} Nf6 {[%emt 0:00:34]} 10. d3 {[%emt 0:01:32]} Bd6 {[%emt 0:00:36]} 11. Bg5 {[%emt 0:00:30]} Bf5 {[%emt 0:02:26]} 12. Bxf6 {[%emt 0:01:46]} gxf6 {[%emt 0:01:30]} 13. g3 {[%emt 0:00:16]} Bg4+ {[%emt 0:00:41]} 14. Kd2 {[%emt 0:00:58]} Bb4 {[%emt 0:00:19]} 15. Rae1 {[%emt 0:00:45]} Rhe8 {[%emt 0:00:22]} 16. h3 {[%emt 0:00:49]} Rxe1 {[%emt 0:00:34]} 17. Kxe1 {[%emt 0:00:19]} Re8+ {[%emt 0:00:16]} 18. Kf1 {[%emt 0:00:57]} Bf3 {[%emt 0:00:18]} 19. Rh2 {[%emt 0:01:22]} Bxc3 {[%emt 0:00:45]} 20. bxc3 {[%emt 0:01:09]} Re2 {[%emt 0:00:32]} 21. h4 {[%emt 0:00:29]} Rd2 {[%emt 0:00:18]} 22. Ke1 {[%emt 0:01:00]} Rd1# {[%emt 0:00:15]} 0-1

[Event "22nd Ruzomberok Open 2019"]
[Site "Ruzomberok"]
[Date "2019.06.29"]
[Round "1.34"]
[White "Tomanek, Rafael"]
[Black "Zilkay, Dominik"]
[Result "1/2-1/2"]
[ECO "D44"]
[WhiteElo "1880"]
[BlackElo "1328"]
[Annotator "NA"]
[PlyCount "123"]
[EventDate "2019.06.29"]
[EventType "swiss"]
[EventCountry "SVK"]
[SourceTitle "playchess.com"]
[Source "ChessBase"]
[SourceQuality "1"]
[TimeControl "40/5400+30:1800+30"]

1. d4 {[%emt 0:00:00]} d5 {[%emt 0:00:00]} 2. Nf3 {[%emt 0:00:00]} Nf6 {[%emt 0:00:27]} 3. c4 {[%emt 0:00:00]} c6 {[%emt 0:00:17]} 4. Nc3 {[%emt 0:00:00]} e6 {[%emt 0:00:29]} 5. Bg5 {[%emt 0:01:47]} dxc4 {[%emt 0:00:26]} 6. e4 {[%emt 0:01:39]} b5 {[%emt 0:00:06]} 7. e5 {[%emt 0:00:50]} h6 {[%emt 0:00:09]} 8. Bh4 {[%emt 0:00:50]} g5 {[%emt 0:00:09]} 9. Nxg5 {[%emt 0:00:42]} hxg5 {[%emt 0:00:09]} 10. Bxg5 {[%emt 0:00:04]} Nbd7 {[%emt 0:00:13]} 11. exf6 {[%emt 0:04:33]} Bb7 {[%emt 0:00:12]} 12. Qc2 {[%emt 0:05:52]} Qb6 {[%emt 0:09:19]} 13. O-O-O {[%emt 0:04:20]} O-O-O {[%emt 0:02:10]} 14. Ne4 {[%emt 0:06:27]} c5 {[%emt 0:08:50]} 15. dxc5 {[%emt 0:04:52]} Nxc5 {[%emt 0:02:09]} 16. Rxd8+ {[%emt 0:01:08]} Qxd8 {[%emt 0:01:39]} 17. Nxc5 {[%emt 0:03:15]} Bxc5 {[%emt 0:02:05]} 18. h4 {[%emt 0:01:16]} Qa5 {[%emt 0:02:35]} 19. Be2 {[%emt 0:17:36]} Qxa2 {[%emt 0:02:12]} 20. f3 {[%emt 0:04:09]} a5 {[%emt 0:07:03]} 21. Qb1 {[%emt 0:07:12]} Qb3 {[%emt 0:00:24]} 22. Qc2 {[%emt 0:01:11]} a4 {[%emt 0:14:28]} 23. Qxb3 {[%emt 0:03:32]} axb3 {[%emt 0:00:03]} 24. h5 {[%emt 0:04:30]} Bd5 {[%emt 0:00:18]} 25. Kb1 {[%emt 0:06:28]} Kd7 {[%emt 0:02:21]} 26. g4 {[%emt 0:00:59]} b4 {[%emt 0:20:07]} 27. Bd2 {[%emt 0:05:55]} Kc6 {[%emt 0:00:49]} 28. h6 {[%emt 0:03:30]} Bd4 {[%emt 0:05:59]} 29. Bxb4 {[%emt 0:03:25]} Bxf6 {[%emt 0:00:13]} 30. Bc3 {[%emt 0:02:05]} Bxc3 {[%emt 0:00:02]} 31. bxc3 {[%emt 0:00:12]} Kd6 {[%emt 0:01:52]} 32. Rh5 {[%emt 0:03:33]} f6 {[%emt 0:04:39]} 33. f4 {[%emt 0:01:42]} Ra8 {[%emt 0:03:36]} 34. h7 {[%emt 0:00:47]} Be4+ {[%emt 0:00:39]} 35. Kc1 {[%emt 0:00:10]} Ra1+ {[%emt 0:01:16]} 36. Kd2 {[%emt 0:00:31]} Bxh7 {[%emt 0:01:37]} 37. Rxh7 {[%emt 0:01:20]} b2 {[%emt 0:00:11]} 38. Rb7 {[%emt 0:00:30]} b1=Q {[%emt 0:00:16]} 39. Rxb1 {[%emt 0:00:03]} Rxb1 {[%emt 0:00:32]} 40. Bxc4 {[%emt 0:00:11]} Rg1 {[%emt 0:01:21]} 41. Be2 {[%emt 0:31:36]} Kd5 {[%emt 0:37:19]} 42. Bf3+ {[%emt 0:01:34]} Kc4 {[%emt 0:00:31]} 43. Be2+ {[%emt 0:00:19]} Kc5 {[%emt 0:00:00]} 44. Ke3 {[%emt 0:00:00]} Rg3+ {[%emt 0:00:00]} 45. Kd2 {[%emt 0:00:00]} Kd5 {[%emt 0:00:00]} 46. c4+ {[%emt 0:00:00]} Ke4 {[%emt 0:00:00]} 47. g5 {[%emt 0:00:00]} fxg5 {[%emt 0:00:00]} 48. fxg5 {[%emt 0:00:00]} Rxg5 {[%emt 0:00:00]} 49. Bd3+ {[%emt 0:00:00]} Kd4 {[%emt 0:00:00]} 50. Bf1 {[%emt 0:00:00]} e5 {[%emt 0:00:00]} 51. Be2 {[%emt 0:00:00]} e4 {[%emt 0:00:00]} 52. c5 {[%emt 0:00:00]} e3+ {[%emt 0:00:00]} 53. Ke1 {[%emt 0:00:00]} Rxc5 {[%emt 0:00:00]} 54. Bf3 {[%emt 0:00:00]} Rc2 {[%emt 0:00:00]} 55. Bh5 {[%emt 0:00:00]} Ke5 {[%emt 0:00:00]} 56. Be8 {[%emt 0:00:00]} Kf4 {[%emt 0:00:00]} 57. Ba4 {[%emt 0:00:00]} Ra2 {[%emt 0:00:00]} 58. Bc6 {[%emt 0:00:00]} e2 {[%emt 0:00:00]} 59. Kf2 {[%emt 0:00:00]} Rd2 {[%emt 0:00:00]} 60. Bb5 {[%emt 0:00:00]} e1=Q+ {[%emt 0:00:00]} 61. Kxe1 {[%emt 0:00:00]} Ke3 {[%emt 0:00:00]} 62. Be8 {[%emt 0:00:21]} 1/2-1/2

[Event "22nd Ruzomberok Open 2019"]
[Site "Ruzomberok"]
[Date "2019.06.29"]
[Round "1.35"]
[White "Horbal, Michal"]
[Black "Profant, Jan"]
[Result "0-1"]
[ECO "B20"]
[WhiteElo "1121"]
[BlackElo "1871"]
[Annotator "NA"]
[PlyCount "78"]
[EventDate "2019.06.29"]
[EventType "swiss"]
[EventCountry "SVK"]
[SourceTitle "playchess.com"]
[Source "ChessBase"]
[SourceQuality "1"]
[TimeControl "40/5400+30:1800+30"]

1. e4 {[%emt 0:00:00]} c5 {[%emt 0:00:00]} 2. Bc4 {[%emt 0:00:06]} Nc6 {[%emt 0:00:00]} 3. Nf3 {[%emt 0:01:45]} g6 {[%emt 0:01:35]} 4. O-O {[%emt 0:04:18]} Bg7 {[%emt 0:00:24]} 5. c3 {[%emt 0:02:55]} d6 {[%emt 0:07:35]} 6. h3 {[%emt 0:04:34]} Nf6 {[%emt 0:00:57]} 7. d3 {[%emt 0:07:52]} a6 {[%emt 0:01:01]} 8. Re1 {[%emt 0:04:40]} b5 {[%emt 0:00:25]} 9. Bd5 {[%emt 0:04:37]} Nxd5 {[%emt 0:01:06]} 10. exd5 {[%emt 0:00:25]} Ne5 {[%emt 0:00:42]} 11. Nxe5 {[%emt 0:04:04]} dxe5 {[%emt 0:00:19]} 12. c4 {[%emt 0:02:18]} O-O {[%emt 0:03:17]} 13. Nc3 {[%emt 0:01:06]} b4 {[%emt 0:01:27]} 14. Ne4 {[%emt 0:03:36]} Qc7 {[%emt 0:00:11]} 15. Be3 {[%emt 0:02:43]} f5 {[%emt 0:00:13]} 16. Ng5 {[%emt 0:05:49]} h6 {[%emt 0:02:09]} 17. Ne6 {[%emt 0:03:03]} Bxe6 {[%emt 0:00:15]} 18. dxe6 {[%emt 0:00:15]} f4 {[%emt 0:00:34]} 19. Bc1 {[%emt 0:01:54]} Qc6 {[%emt 0:00:10]} 20. Qg4 {[%emt 0:03:13]} Rf5 {[%emt 0:01:40]} 21. Qxg6 {[%emt 0:02:38]} Rf6 {[%emt 0:01:25]} 22. Qe4 {[%emt 0:01:07]} Qxe4 {[%emt 0:11:25]} 23. Rxe4 {[%emt 0:02:00]} Rg6 {[%emt 0:01:27]} 24. a3 {[%emt 0:02:47]} b3 {[%emt 0:03:37]} 25. Bd2 {[%emt 0:04:13]} Rd8 {[%emt 0:00:19]} 26. Ba5 {[%emt 0:02:01]} Rxd3 {[%emt 0:06:07]} 27. Kh2 {[%emt 0:05:04]} Rxe6 {[%emt 0:00:18]} 28. Rae1 {[%emt 0:03:01]} Rd4 {[%emt 0:02:36]} 29. Bc3 Rxe4 {[%emt 0:00:08]} 30. Rxe4 {[%emt 0:05:01]} Kf7 {[%emt 0:00:11]} 31. Bd2 {[%emt 0:01:37]} Kf6 {[%emt 0:00:34]} 32. g3 {[%emt 0:00:45]} Kf5 {[%emt 0:01:12]} 33. Re1 {[%emt 0:01:38]} fxg3+ {[%emt 0:02:29]} 34. fxg3 {[%emt 0:00:41]} e4 {[%emt 0:00:22]} 35. Rf1+ {[%emt 0:02:16]} Kg6 {[%emt 0:00:10]} 36. Bc1 {[%emt 0:01:19]} Bd4 {[%emt 0:01:07]} 37. Rf8 {[%emt 0:03:27]} e3 {[%emt 0:00:14]} 38. Rg8+ {[%emt 0:01:38]} Kf7 {[%emt 0:00:05]} 39. Rg4 {[%emt 0:01:02]} e2 {[%emt 0:00:15]} 0-1

[Event "22nd Ruzomberok Open 2019"]
[Site "Ruzomberok"]
[Date "2019.06.29"]
[Round "1.36"]
[White "Zahradnik, Vladimir"]
[Black "Slyk, Piotr"]
[Result "1-0"]
[ECO "A40"]
[WhiteElo "1862"]
[BlackElo "1082"]
[Annotator "NA"]
[PlyCount "95"]
[EventDate "2019.06.29"]
[EventType "swiss"]
[EventCountry "SVK"]
[SourceTitle "playchess.com"]
[Source "ChessBase"]
[SourceQuality "1"]
[TimeControl "40/5400+30:1800+30"]

1. d4 {[%emt 0:00:00]} e6 {[%emt 0:00:00]} 2. Nf3 {[%emt 0:00:00]} Nf6 {[%emt 0:00:24]} 3. a3 {[%emt 0:00:32]} g6 {[%emt 0:00:15]} 4. c4 {[%emt 0:00:09]} Bg7 {[%emt 0:00:21]} 5. Nc3 {[%emt 0:00:02]} O-O {[%emt 0:00:20]} 6. e4 {[%emt 0:00:47]} d6 {[%emt 0:00:28]} 7. Be2 {[%emt 0:01:18]} Qd7 {[%emt 0:00:33]} 8. Bg5 {[%emt 0:01:18]} Ne8 {[%emt 0:00:41]} 9. Qd2 {[%emt 0:00:20]} a6 {[%emt 0:00:35]} 10. Bh6 {[%emt 0:00:22]} Nc6 {[%emt 0:01:11]} 11. h4 {[%emt 0:00:19]} f6 {[%emt 0:01:05]} 12. h5 {[%emt 0:01:15]} Qf7 {[%emt 0:01:06]} 13. hxg6 {[%emt 0:00:28]} Qxg6 {[%emt 0:00:27]} 14. O-O-O {[%emt 0:00:37]} Bd7 {[%emt 0:04:05]} 15. Rh4 {[%emt 0:02:01]} e5 {[%emt 0:01:38]} 16. Rdh1 {[%emt 0:01:23]} Rf7 {[%emt 0:01:46]} 17. Be3 {[%emt 0:01:56]} Bf8 {[%emt 0:02:03]} 18. d5 {[%emt 0:01:54]} Ne7 {[%emt 0:00:49]} 19. g4 {[%emt 0:00:14]} Rg7 {[%emt 0:05:53]} 20. Ne1 {[%emt 0:01:43]} c6 {[%emt 0:01:15]} 21. Bh6 {[%emt 0:02:57]} Rf7 {[%emt 0:00:59]} 22. Bxf8 {[%emt 0:01:51]} Kxf8 {[%emt 0:00:39]} 23. Nd3 {[%emt 0:04:24]} cxd5 {[%emt 0:02:24]} 24. cxd5 {[%emt 0:02:32]} Rc8 {[%emt 0:04:11]} 25. f3 {[%emt 0:01:03]} b5 {[%emt 0:01:37]} 26. Kb1 {[%emt 0:01:11]} Rg7 {[%emt 0:04:09]} 27. Nd1 {[%emt 0:04:08]} Rc7 {[%emt 0:01:27]} 28. Ne3 {[%emt 0:01:07]} Bc8 {[%emt 0:00:53]} 29. Bd1 {[%emt 0:03:32]} Ng8 {[%emt 0:02:04]} 30. Bb3 {[%emt 0:05:44]} Qf7 {[%emt 0:04:04]} 31. f4 {[%emt 0:01:16]} Qg6 {[%emt 0:04:38]} 32. Nf5 {[%emt 0:01:03]} Rgd7 {[%emt 0:02:57]} 33. fxe5 {[%emt 0:01:29]} fxe5 {[%emt 0:00:53]} 34. g5 {[%emt 0:00:36]} Rf7 {[%emt 0:01:27]} 35. Nxe5 {[%emt 0:07:07]} dxe5 {[%emt 0:01:48]} 36. Rh6 {[%emt 0:00:09]} Nxh6 {[%emt 0:01:13]} 37. Rxh6 {[%emt 0:00:06]} Qg8 {[%emt 0:04:09]} 38. Qb4+ {[%emt 0:00:14]} Rfe7 {[%emt 0:00:38]} 39. d6 {[%emt 0:00:16]} Rc1+ {[%emt 0:05:03]} 40. Ka2 {[%emt 0:00:30]} Re6 {[%emt 0:03:33]} 41. d7+ {[%emt 0:30:40]} Nd6 {[%emt 0:32:46]} 42. d8=Q+ Kf7 43. Qxg8+ {[%emt 0:02:45]} Kxg8 44. Qxd6 Rc6 {[%emt 0:03:51]} 45. Qxc6 {[%emt 0:00:45]} Bd7 {[%emt 0:01:29]} 46. Qxd7 {[%emt 0:00:38]} Kf8 {[%emt 0:00:48]} 47. Qxe6 {[%emt 0:00:42]} b4 {[%emt 0:00:23]} 48. Qf7# {[%emt 0:00:07]} 1-0

[Event "22nd Ruzomberok Open 2019"]
[Site "Ruzomberok"]
[Date "2019.06.29"]
[Round "1.38"]
[White "Marsina, Stefan"]
[Black "Berglund, Jan S."]
[Result "1-0"]
[ECO "A40"]
[WhiteElo "1857"]
[BlackElo "2013"]
[Annotator "NA"]
[PlyCount "61"]
[EventDate "2019.06.29"]
[EventType "swiss"]
[EventCountry "SVK"]
[SourceTitle "playchess.com"]
[Source "ChessBase"]
[SourceQuality "1"]
[TimeControl "40/5400+30:1800+30"]

1. d4 {[%emt 0:00:00]} b6 {[%emt 0:00:16]} 2. Bf4 {[%emt 0:00:17]} e6 {[%emt 0:00:44]} 3. Nf3 {[%emt 0:01:05]} Bb7 {[%emt 0:00:41]} 4. e3 {[%emt 0:00:36]} Nf6 {[%emt 0:00:55]} 5. Bd3 {[%emt 0:04:07]} c5 {[%emt 0:01:49]} 6. h3 {[%emt 0:06:50]} d5 {[%emt 0:00:58]} 7. c4 {[%emt 0:04:48]} dxc4 {[%emt 0:01:04]} 8. Bxc4 {[%emt 0:00:07]} Bd5 {[%emt 0:00:46]} 9. Bb5+ {[%emt 0:03:48]} Bc6 {[%emt 0:00:51]} 10. Nc3 {[%emt 0:01:04]} a6 {[%emt 0:00:48]} 11. Be2 {[%emt 0:02:04]} b5 {[%emt 0:03:20]} 12. O-O {[%emt 0:03:08]} b4 {[%emt 0:09:35]} 13. Na4 {[%emt 0:01:34]} Bxa4 {[%emt 0:01:18]} 14. Qxa4+ {[%emt 0:00:05]} Qd7 {[%emt 0:00:21]} 15. Qc2 {[%emt 0:01:31]} cxd4 {[%emt 0:01:18]} 16. Rfd1 {[%emt 0:06:01]} Qc6 {[%emt 0:04:53]} 17. Qd3 {[%emt 0:07:09]} Qe4 {[%emt 0:01:09]} 18. Qc4 {[%emt 0:02:55]} Qc6 {[%emt 0:10:15]} 19. Qxd4 {[%emt 0:03:08]} Be7 {[%emt 0:01:11]} 20. Rac1 {[%emt 0:00:23]} Qd7 {[%emt 0:01:03]} 21. Qc4 {[%emt 0:05:18]} Nd5 {[%emt 0:04:01]} 22. Qc8+ {[%emt 0:05:34]} Qxc8 23. Rxc8+ Bd8 {[%emt 0:03:47]} 24. Rxb8 {[%emt 0:07:15]} Nxf4 {[%emt 0:01:25]} 25. Rdxd8+ {[%emt 0:01:06]} Ke7 {[%emt 0:00:19]} 26. Rxh8 {[%emt 0:00:11]} Rxb8 {[%emt 0:00:16]} 27. Rxb8 {[%emt 0:00:11]} Nxe2+ {[%emt 0:00:29]} 28. Kf1 {[%emt 0:00:00]} Nc1 {[%emt 0:00:14]} 29. Rxb4 {[%emt 0:00:29]} Nd3 {[%emt 0:00:12]} 30. Rb7+ {[%emt 0:02:25]} Kf6 {[%emt 0:00:16]} 31. b4 {[%emt 0:02:26]} 1-0

[Event "22nd Ruzomberok Open 2019"]
[Site "Ruzomberok"]
[Date "2019.06.29"]
[Round "1.39"]
[White "Brennan, Samuel J"]
[Black "Pasztor, Ladislav"]
[Result "0-1"]
[ECO "B56"]
[WhiteElo "1678"]
[BlackElo "1857"]
[Annotator "NA"]
[PlyCount "82"]
[EventDate "2019.06.29"]
[EventType "swiss"]
[EventCountry "SVK"]
[SourceTitle "playchess.com"]
[Source "ChessBase"]
[SourceQuality "1"]
[TimeControl "40/5400+30:1800+30"]

1. e4 {[%emt 0:00:00]} c5 {[%emt 0:00:00]} 2. Nf3 {[%emt 0:00:00]} Nc6 {[%emt 0:00:00]} 3. d4 {[%emt 0:00:00]} cxd4 {[%emt 0:00:00]} 4. Nxd4 {[%emt 0:00:11]} Nf6 {[%emt 0:00:13]} 5. Nc3 {[%emt 0:01:13]} d6 {[%emt 0:00:20]} 6. Bb5 {[%emt 0:02:28]} Bd7 {[%emt 0:00:19]} 7. O-O {[%emt 0:01:11]} e6 {[%emt 0:08:03]} 8. Re1 {[%emt 0:06:10]} Qc7 {[%emt 0:03:26]} 9. Bg5 {[%emt 0:09:33]} Be7 {[%emt 0:00:34]} 10. Ba4 {[%emt 0:05:14]} a6 {[%emt 0:02:57]} 11. f4 {[%emt 0:05:33]} b5 {[%emt 0:04:36]} 12. Nxc6 {[%emt 0:04:57]} Bxc6 {[%emt 0:00:50]} 13. Bb3 {[%emt 0:00:11]} O-O {[%emt 0:05:10]} 14. e5 {[%emt 0:05:12]} dxe5 {[%emt 0:03:30]} 15. fxe5 {[%emt 0:01:21]} Rad8 {[%emt 0:00:53]} 16. Qe2 {[%emt 0:04:16]} Nd5 {[%emt 0:02:21]} 17. Bxe7 {[%emt 0:01:48]} Nxc3 {[%emt 0:02:04]} 18. Qe3 {[%emt 0:05:10]} Qxe7 {[%emt 0:02:10]} 19. Qxc3 {[%emt 0:00:10]} Bb7 {[%emt 0:02:00]} 20. Rad1 {[%emt 0:04:38]} Qg5 {[%emt 0:03:33]} 21. g3 {[%emt 0:03:07]} Qg4 {[%emt 0:07:17]} 22. Rxd8 {[%emt 0:06:10]} Rxd8 {[%emt 0:00:16]} 23. Qc7 {[%emt 0:00:16]} Qd4+ {[%emt 0:00:21]} 24. Kf1 {[%emt 0:00:41]} Qd7 {[%emt 0:06:47]} 25. Qxd7 {[%emt 0:01:38]} Rxd7 {[%emt 0:00:41]} 26. c3 {[%emt 0:00:17]} Kf8 {[%emt 0:03:46]} 27. Rd1 {[%emt 0:00:50]} Ke7 {[%emt 0:00:17]} 28. Rxd7+ {[%emt 0:00:40]} Kxd7 {[%emt 0:00:06]} 29. Ke2 {[%emt 0:00:17]} Kc6 {[%emt 0:03:17]} 30. Kd3 {[%emt 0:00:58]} Kc5 {[%emt 0:00:47]} 31. a3 {[%emt 0:00:35]} Bg2 {[%emt 0:07:16]} 32. Ba2 {[%emt 0:03:24]} Bd5 {[%emt 0:06:28]} 33. Bxd5 {[%emt 0:01:01]} Kxd5 {[%emt 0:00:17]} 34. b3 {[%emt 0:01:18]} Kxe5 {[%emt 0:00:00]} 35. c4 {[%emt 0:00:38]} bxc4+ {[%emt 0:00:31]} 36. bxc4 {[%emt 0:00:17]} Kd6 {[%emt 0:00:38]} 37. Kd4 {[%emt 0:01:24]} f6 {[%emt 0:00:44]} 38. g4 {[%emt 0:00:44]} e5+ {[%emt 0:02:57]} 39. Kc3 {[%emt 0:02:12]} Kc5 {[%emt 0:00:11]} 40. h3 {[%emt 0:01:03]} g6 {[%emt 0:00:30]} 41. Kd3 {[%emt 0:30:21]} f5 0-1